[Event "*** Titled Tuesday Blitz"]
[Site "Chess.com"]
[Date "2019.12.03"]
[Round "10"]
[White "DeviatkinAndrey"]
[Black "Indianlad"]
[Result "0-1"]
[WhiteElo "2700"]
[BlackElo "2883"]
[TimeControl "180+2"]
[EndTime "15:17:30 PST"]
[Termination "Indianlad won by resignation"]

1. d4 {[%clk 0:03:01.9]} 1... Nf6 {[%clk 0:03:00.6]} 2. Nf3 {[%clk 0:03:02.2]}
2... d5 {[%clk 0:03:01.2]} 3. Bg5 {[%clk 0:03:02.7]} 3... Ne4 {[%clk 0:02:59.5]}
4. Bf4 {[%clk 0:03:01.2]} 4... c5 {[%clk 0:03:00.1]} 5. c3 {[%clk 0:03:00.1]}
5... Nc6 {[%clk 0:02:58.3]} 6. e3 {[%clk 0:03:01]} 6... Qb6 {[%clk 0:02:59.8]}
7. Qb3 {[%clk 0:03:01.4]} 7... c4 {[%clk 0:03:00.7]} 8. Qc2 {[%clk 0:02:56.1]}
8... Bf5 {[%clk 0:02:38.3]} 9. Qc1 {[%clk 0:02:57.3]} 9... e6 {[%clk 0:02:38.3]}
10. Nbd2 {[%clk 0:02:57.3]} 10... Rc8 {[%clk 0:02:38.3]} 11. Nxe4 {[%clk
0:02:57.7]} 11... Bxe4 {[%clk 0:02:39.2]} 12. Nd2 {[%clk 0:02:55]} 12... Bg6
{[%clk 0:02:39.7]} 13. Be2 {[%clk 0:02:44.3]} 13... Qd8 {[%clk 0:02:36.7]} 14.
O-O {[%clk 0:02:39.4]} 14... Bd6 {[%clk 0:02:38.2]} 15. Bxd6 {[%clk 0:02:37.9]}
15... Qxd6 {[%clk 0:02:40.1]} 16. e4 {[%clk 0:02:38.1]} 16... O-O {[%clk
0:02:28.4]} 17. Bf3 {[%clk 0:02:25.7]} 17... b5 {[%clk 0:02:29.2]} 18. a3 {[%clk
0:02:24.9]} 18... a5 {[%clk 0:02:30.4]} 19. Re1 {[%clk 0:02:25.8]} 19... h6
{[%clk 0:02:29.8]} 20. g3 {[%clk 0:02:20]} 20... Rfd8 {[%clk 0:02:30.3]} 21.
exd5 {[%clk 0:02:14.4]} 21... exd5 {[%clk 0:02:30.8]} 22. Nf1 {[%clk 0:02:15.1]}
22... Re8 {[%clk 0:02:27.3]} 23. Qd2 {[%clk 0:02:15.3]} 23... Be4 {[%clk
0:02:22.5]} 24. Bxe4 {[%clk 0:02:12.7]} 24... dxe4 {[%clk 0:02:24.4]} 25. Rad1
{[%clk 0:01:56.4]} 25... Rcd8 {[%clk 0:02:22.1]} 26. Qc2 {[%clk 0:01:44.9]}
26... f5 {[%clk 0:02:20.9]} 27. a4 {[%clk 0:01:44.5]} 27... b4 {[%clk
0:02:15.3]} 28. Ne3 {[%clk 0:01:44.6]} 28... f4 {[%clk 0:02:06.5]} 29. Nxc4
{[%clk 0:01:43.6]} 29... Qe6 {[%clk 0:02:08.1]} 30. Qb3 {[%clk 0:01:05.2]} 30...
bxc3 {[%clk 0:02:01.9]} 31. bxc3 {[%clk 0:01:05.6]} 31... Rb8 {[%clk 0:02:00.1]}
32. d5 {[%clk 0:01:00.3]} 32... Qh3 {[%clk 0:01:52]} 33. Qa2 {[%clk 0:00:50]}
33... Ne5 {[%clk 0:01:51.7]} 34. Nxe5 {[%clk 0:00:18.7]} 34... f3 {[%clk
0:01:52.6]} 35. d6+ {[%clk 0:00:20.1]} 35... Kh7 {[%clk 0:01:53.6]} 36. Nxf3
{[%clk 0:00:11.9]} 36... exf3 {[%clk 0:01:54.8]} 37. Qc2+ {[%clk 0:00:11.4]}
37... Kh8 {[%clk 0:01:56.3]} 38. Rxe8+ {[%clk 0:00:10.5]} 38... Rxe8 {[%clk
0:01:58.2]} 0-1

[Event "*** Titled Tuesday Blitz"]
[Site "Chess.com"]
[Date "2019.12.03"]
[Round "10"]
[White "ChessWarrior7197"]
[Black "marianokar"]
[Result "0-1"]
[WhiteElo "2877"]
[BlackElo "2448"]
[TimeControl "180+2"]
[EndTime "15:17:30 PST"]
[Termination "marianokar won by resignation"]

1. e4 {[%clk 0:03:01.9]} 1... e5 {[%clk 0:02:54.7]} 2. Nf3 {[%clk 0:03:01]} 2...
Nc6 {[%clk 0:02:55.2]} 3. Bc4 {[%clk 0:03:01.5]} 3... Nf6 {[%clk 0:02:56.4]} 4.
d3 {[%clk 0:03:01.2]} 4... h6 {[%clk 0:02:55.1]} 5. O-O {[%clk 0:03:02]} 5... d6
{[%clk 0:02:56.5]} 6. Nc3 {[%clk 0:03:02.9]} 6... g6 {[%clk 0:02:57.3]} 7. d4
{[%clk 0:03:02.1]} 7... exd4 {[%clk 0:02:53.5]} 8. Nxd4 {[%clk 0:03:02.2]} 8...
Bg7 {[%clk 0:02:54.2]} 9. f3 {[%clk 0:02:57.4]} 9... O-O {[%clk 0:02:52.3]} 10.
Be3 {[%clk 0:02:58]} 10... Ne5 {[%clk 0:02:48]} 11. Bb3 {[%clk 0:02:58.4]} 11...
a6 {[%clk 0:02:44.5]} 12. a4 {[%clk 0:02:59.1]} 12... Re8 {[%clk 0:02:42.1]} 13.
Qd2 {[%clk 0:03:00.1]} 13... Rb8 {[%clk 0:02:38.3]} 14. Bxh6 {[%clk 0:03:00.8]}
14... c5 {[%clk 0:02:31.6]} 15. Bxg7 {[%clk 0:02:57.8]} 15... Kxg7 {[%clk
0:02:26.2]} 16. Nde2 {[%clk 0:02:55.9]} 16... c4 {[%clk 0:02:25.7]} 17. Ba2
{[%clk 0:02:57.3]} 17... b5 {[%clk 0:02:23.9]} 18. axb5 {[%clk 0:02:59.2]} 18...
axb5 {[%clk 0:02:24.5]} 19. Kh1 {[%clk 0:03:00.3]} 19... Rh8 {[%clk 0:02:16.1]}
20. Rad1 {[%clk 0:02:55.7]} 20... Rb6 {[%clk 0:01:45.7]} 21. Qe1 {[%clk
0:02:53.6]} 21... b4 {[%clk 0:01:21.5]} 22. Nd5 {[%clk 0:02:38.7]} 22... Nxd5
{[%clk 0:01:22.2]} 23. Rxd5 {[%clk 0:02:40.2]} 23... Be6 {[%clk 0:01:22.9]} 24.
Rd1 {[%clk 0:02:38.1]} 24... Ra6 {[%clk 0:01:07.1]} 25. Bb1 {[%clk 0:02:36.7]}
25... Qa5 {[%clk 0:00:56.1]} 26. Nd4 {[%clk 0:02:34.2]} 26... Bd7 {[%clk
0:00:53.2]} 27. Qg3 {[%clk 0:02:32.8]} 27... Qc5 {[%clk 0:00:50.5]} 28. f4
{[%clk 0:02:27.6]} 28... Ng4 {[%clk 0:00:49.7]} 29. h3 {[%clk 0:02:28.4]} 29...
c3 {[%clk 0:00:42.8]} 30. f5 {[%clk 0:02:28.4]} 30... Nf6 {[%clk 0:00:33.4]} 31.
fxg6 {[%clk 0:02:28.1]} 31... fxg6 {[%clk 0:00:33.4]} 32. Nf5+ {[%clk
0:02:28.1]} 32... Bxf5 {[%clk 0:00:28.5]} 33. Rxf5 {[%clk 0:02:29.7]} 33... Nxe4
{[%clk 0:00:24]} 34. Rf7+ {[%clk 0:02:09.7]} 34... Kxf7 {[%clk 0:00:24.2]} 35.
Rf1+ {[%clk 0:02:11.6]} 35... Kg7 {[%clk 0:00:22.4]} 36. Qf4 {[%clk 0:02:13.5]}
36... Qf5 {[%clk 0:00:20.6]} 37. bxc3 {[%clk 0:02:08.3]} 37... Ng3+ {[%clk
0:00:19.4]} 38. Qxg3 {[%clk 0:02:08.2]} 38... Qxf1+ {[%clk 0:00:20]} 39. Kh2
{[%clk 0:02:10.1]} 39... Qf6 {[%clk 0:00:19.7]} 40. Qd3 {[%clk 0:02:07]} 40...
Qe5+ {[%clk 0:00:20.1]} 41. Kg1 {[%clk 0:02:07.7]} 41... Ra1 {[%clk 0:00:21.3]}
42. Qd1 {[%clk 0:02:08]} 42... bxc3 {[%clk 0:00:21.3]} 0-1

[Event "*** Titled Tuesday Blitz"]
[Site "Chess.com"]
[Date "2019.12.03"]
[Round "10"]
[White "Konavets"]
[Black "cool4chess"]
[Result "0-1"]
[WhiteElo "2894"]
[BlackElo "2659"]
[TimeControl "180+2"]
[EndTime "15:17:36 PST"]
[Termination "cool4chess won by resignation"]

1. e4 {[%clk 0:03:01.9]} 1... e5 {[%clk 0:02:53.2]} 2. Nf3 {[%clk 0:03:02.6]}
2... Nc6 {[%clk 0:02:54.8]} 3. Bc4 {[%clk 0:03:03.7]} 3... Nf6 {[%clk
0:02:55.2]} 4. d3 {[%clk 0:03:04]} 4... Bc5 {[%clk 0:02:56.6]} 5. O-O {[%clk
0:03:04.8]} 5... d6 {[%clk 0:02:57.4]} 6. c3 {[%clk 0:03:06.1]} 6... a6 {[%clk
0:02:58.8]} 7. a4 {[%clk 0:03:06.9]} 7... h6 {[%clk 0:02:59.8]} 8. h3 {[%clk
0:03:08.4]} 8... O-O {[%clk 0:03:00.1]} 9. Nbd2 {[%clk 0:03:09.3]} 9... d5
{[%clk 0:02:58]} 10. exd5 {[%clk 0:03:09.5]} 10... Nxd5 {[%clk 0:02:59.9]} 11.
Re1 {[%clk 0:03:10]} 11... Re8 {[%clk 0:02:55.9]} 12. Ne4 {[%clk 0:03:09.2]}
12... Ba7 {[%clk 0:02:52.7]} 13. Bxh6 {[%clk 0:03:09.8]} 13... Be6 {[%clk
0:02:26.3]} 14. Bg5 {[%clk 0:03:08.8]} 14... f6 {[%clk 0:02:23.3]} 15. Bd2
{[%clk 0:03:06.6]} 15... Qd7 {[%clk 0:02:24.6]} 16. b4 {[%clk 0:03:05.4]} 16...
Rad8 {[%clk 0:02:24.4]} 17. Nh4 {[%clk 0:02:48.5]} 17... Qf7 {[%clk 0:02:21.5]}
18. Qf3 {[%clk 0:02:49.1]} 18... Nce7 {[%clk 0:02:21.5]} 19. b5 {[%clk
0:02:44.3]} 19... axb5 {[%clk 0:02:18.1]} 20. axb5 {[%clk 0:02:44.4]} 20... Bb6
{[%clk 0:02:19.7]} 21. Qg3 {[%clk 0:02:33.1]} 21... Kh8 {[%clk 0:02:17.9]} 22.
Nf3 {[%clk 0:02:28]} 22... Nf5 {[%clk 0:02:15.9]} 23. Qh2 {[%clk 0:02:29.5]}
23... Kg8 {[%clk 0:02:10.1]} 24. h4 {[%clk 0:02:24.2]} 24... Qh5 {[%clk
0:02:06.4]} 25. Ng3 {[%clk 0:02:23.7]} 25... Nxg3 {[%clk 0:02:06]} 26. Qxg3
{[%clk 0:02:25.6]} 26... Bf7 {[%clk 0:02:02.6]} 27. Re4 {[%clk 0:02:21.9]} 27...
Ne7 {[%clk 0:01:58.8]} 28. Bxf7+ {[%clk 0:01:53.4]} 28... Qxf7 {[%clk
0:02:00.7]} 29. d4 {[%clk 0:01:52.8]} 29... Nf5 {[%clk 0:02:00.4]} 30. Qg4
{[%clk 0:01:50.8]} 30... Nxd4 {[%clk 0:02:00.7]} 31. Nxd4 {[%clk 0:01:14.4]}
31... Bxd4 {[%clk 0:01:58.7]} 32. Qg3 {[%clk 0:01:12.6]} 32... Bb6 {[%clk
0:01:59.4]} 33. Be3 {[%clk 0:01:11.1]} 33... Rd3 {[%clk 0:01:59]} 34. c4 {[%clk
0:00:50.8]} 34... Bd4 {[%clk 0:01:55.7]} 35. Rf1 {[%clk 0:00:09]} 35... f5
{[%clk 0:01:56.7]} 36. Qf3 {[%clk 0:00:10.3]} 36... fxe4 {[%clk 0:01:53.2]} 37.
Qxe4 {[%clk 0:00:12.2]} 37... Qxc4 {[%clk 0:01:54.4]} 38. h5 {[%clk 0:00:08.2]}
38... Qxb5 {[%clk 0:01:50.4]} 39. h6 {[%clk 0:00:09.2]} 39... Bxe3 {[%clk
0:01:50.2]} 40. Qxe3 {[%clk 0:00:05.8]} 40... Rxe3 {[%clk 0:01:50.4]} 0-1

[Event "*** Titled Tuesday Blitz"]
[Site "Chess.com"]
[Date "2019.12.03"]
[Round "10"]
[White "Gentlejimmy7"]
[Black "VladimirBelous"]
[Result "1/2-1/2"]
[WhiteElo "2610"]
[BlackElo "2751"]
[TimeControl "180+2"]
[EndTime "15:17:38 PST"]
[Termination "Game drawn - insufficient material"]

1. d4 {[%clk 0:03:01.9]} 1... c5 {[%clk 0:03:01.9]} 2. Nf3 {[%clk 0:02:59.1]}
2... cxd4 {[%clk 0:03:02.9]} 3. Nxd4 {[%clk 0:03:00.4]} 3... g6 {[%clk
0:03:04.2]} 4. g3 {[%clk 0:03:01.1]} 4... Bg7 {[%clk 0:03:06.1]} 5. Bg2 {[%clk
0:03:02.6]} 5... Nc6 {[%clk 0:03:07.5]} 6. Nxc6 {[%clk 0:03:03]} 6... bxc6
{[%clk 0:03:08.6]} 7. c4 {[%clk 0:03:04.4]} 7... Nf6 {[%clk 0:03:10.1]} 8. O-O
{[%clk 0:03:05.2]} 8... O-O {[%clk 0:03:12]} 9. Nc3 {[%clk 0:03:06.5]} 9... Ba6
{[%clk 0:03:11.8]} 10. Qa4 {[%clk 0:03:02.6]} 10... Bb7 {[%clk 0:03:11.6]} 11.
Rd1 {[%clk 0:02:58.6]} 11... d6 {[%clk 0:03:11.4]} 12. b3 {[%clk 0:02:57.1]}
12... Nd7 {[%clk 0:03:11.1]} 13. Bb2 {[%clk 0:02:54.3]} 13... a5 {[%clk
0:03:05.9]} 14. Rab1 {[%clk 0:02:53.7]} 14... Qc8 {[%clk 0:02:57.4]} 15. Ne4
{[%clk 0:02:53.5]} 15... Bxb2 {[%clk 0:02:53]} 16. Rxb2 {[%clk 0:02:55.4]} 16...
c5 {[%clk 0:02:52.5]} 17. Nc3 {[%clk 0:02:55.1]} 17... Nb6 {[%clk 0:02:35.3]}
18. Qa3 {[%clk 0:02:33.8]} 18... Bxg2 {[%clk 0:02:24.7]} 19. Kxg2 {[%clk
0:02:35.7]} 19... a4 {[%clk 0:02:26.6]} 20. Rbb1 {[%clk 0:02:26.8]} 20... Qc6+
{[%clk 0:02:22.2]} 21. Kg1 {[%clk 0:02:22.8]} 21... axb3 {[%clk 0:02:23.4]} 22.
Qxb3 {[%clk 0:02:23.5]} 22... Rfb8 {[%clk 0:02:24.3]} 23. Qc2 {[%clk 0:02:16.9]}
23... e6 {[%clk 0:02:18.2]} 24. Ne4 {[%clk 0:02:14.7]} 24... d5 {[%clk
0:02:10.8]} 25. cxd5 {[%clk 0:02:14.2]} 25... Nxd5 {[%clk 0:02:00.2]} 26. Rxb8+
{[%clk 0:02:11.5]} 26... Rxb8 {[%clk 0:01:57.6]} 27. Qxc5 {[%clk 0:02:13]} 27...
Qxc5 {[%clk 0:01:56.7]} 28. Nxc5 {[%clk 0:02:14.9]} 28... Nc3 {[%clk 0:01:56.5]}
29. Rd2 {[%clk 0:02:06.2]} 29... Ra8 {[%clk 0:01:57.4]} 30. Kg2 {[%clk
0:02:03.1]} 30... Nxa2 {[%clk 0:01:58.6]} 31. Nb7 {[%clk 0:01:57.9]} 31... Kg7
{[%clk 0:01:57.1]} 32. Rd7 {[%clk 0:01:58.9]} 32... Ra7 {[%clk 0:01:51.7]} 33.
Nc5 {[%clk 0:01:59.6]} 33... Rxd7 {[%clk 0:01:51.7]} 34. Nxd7 {[%clk 0:02:01.5]}
34... Nc3 {[%clk 0:01:52.3]} 35. e3 {[%clk 0:01:53.6]} 35... f5 {[%clk
0:01:53.3]} 36. f4 {[%clk 0:01:54.1]} 36... h6 {[%clk 0:01:52.6]} 37. h3 {[%clk
0:01:52.1]} 37... g5 {[%clk 0:01:53.3]} 38. g4 {[%clk 0:01:51.8]} 38... Ne4
{[%clk 0:01:35.3]} 39. Kf3 {[%clk 0:01:33.4]} 39... Kf7 {[%clk 0:01:36.6]} 40.
Ne5+ {[%clk 0:01:30.9]} 40... Ke7 {[%clk 0:01:38]} 41. Nc4 {[%clk 0:01:26.8]}
41... Nf6 {[%clk 0:01:30.7]} 42. Ne5 {[%clk 0:01:23.8]} 42... Nd5 {[%clk
0:01:28.7]} 43. fxg5 {[%clk 0:01:18.4]} 43... hxg5 {[%clk 0:01:27.8]} 44. gxf5
{[%clk 0:01:18.5]} 44... exf5 {[%clk 0:01:26.2]} 45. e4 {[%clk 0:01:19.8]} 45...
Ke6 {[%clk 0:01:26.7]} 46. Nc4 {[%clk 0:01:15.9]} 46... Nf4 {[%clk 0:01:24.1]}
47. exf5+ {[%clk 0:01:16.2]} 47... Kxf5 {[%clk 0:01:26]} 48. Ne3+ {[%clk
0:01:17]} 48... Kg6 {[%clk 0:01:27.5]} 49. h4 {[%clk 0:01:15.6]} 49... gxh4
{[%clk 0:01:29.4]} 50. Kxf4 {[%clk 0:01:16.4]} 50... h3 {[%clk 0:01:31.3]} 51.
Nf5 {[%clk 0:01:14.4]} 51... h2 {[%clk 0:01:33.2]} 52. Ng3 {[%clk 0:01:15.4]}
52... h1=Q {[%clk 0:01:35.1]} 53. Nxh1 {[%clk 0:01:16.2]} 1/2-1/2

[Event "*** Titled Tuesday Blitz"]
[Site "Chess.com"]
[Date "2019.12.03"]
[Round "10"]
[White "vova-79"]
[Black "tteshan"]
[Result "1-0"]
[WhiteElo "2487"]
[BlackElo "2352"]
[TimeControl "180+2"]
[EndTime "15:17:50 PST"]
[Termination "vova-79 won by resignation"]

1. d4 {[%clk 0:02:56.7]} 1... d5 {[%clk 0:03:00.9]} 2. c4 {[%clk 0:02:55.8]}
2... dxc4 {[%clk 0:03:02.2]} 3. e3 {[%clk 0:02:55.5]} 3... Nf6 {[%clk
0:03:02.6]} 4. Bxc4 {[%clk 0:02:55.7]} 4... e6 {[%clk 0:03:04.1]} 5. Nf3 {[%clk
0:02:56.2]} 5... a6 {[%clk 0:03:05]} 6. O-O {[%clk 0:02:56.3]} 6... b5 {[%clk
0:03:05.9]} 7. Be2 {[%clk 0:02:54.1]} 7... Bb7 {[%clk 0:03:07.2]} 8. a4 {[%clk
0:02:54.5]} 8... b4 {[%clk 0:03:05.2]} 9. Nbd2 {[%clk 0:02:49.9]} 9... Nbd7
{[%clk 0:03:05.8]} 10. Nc4 {[%clk 0:02:47.3]} 10... c5 {[%clk 0:03:05.2]} 11. b3
{[%clk 0:02:44.8]} 11... Be7 {[%clk 0:03:02.8]} 12. Bb2 {[%clk 0:02:41.2]} 12...
O-O {[%clk 0:03:03.4]} 13. a5 {[%clk 0:02:40.7]} 13... cxd4 {[%clk 0:02:59.1]}
14. Nxd4 {[%clk 0:02:24.4]} 14... Rc8 {[%clk 0:02:57.1]} 15. h3 {[%clk 0:02:12]}
15... Nc5 {[%clk 0:02:47.2]} 16. Nb6 {[%clk 0:02:11]} 16... Rc7 {[%clk
0:02:47.6]} 17. Bc4 {[%clk 0:02:08.1]} 17... Nfe4 {[%clk 0:02:23.7]} 18. Ne2
{[%clk 0:02:02.5]} 18... Bf6 {[%clk 0:02:21.9]} 19. Qxd8 {[%clk 0:01:38.5]}
19... Rxd8 {[%clk 0:02:23.8]} 20. Bxf6 {[%clk 0:01:37.4]} 20... gxf6 {[%clk
0:02:19.1]} 21. Rfd1 {[%clk 0:01:36.7]} 21... Rxd1+ {[%clk 0:02:05.1]} 22. Rxd1
{[%clk 0:01:35.3]} 22... Bc6 {[%clk 0:01:50.7]} 23. f3 {[%clk 0:01:31.6]} 23...
Nc3 {[%clk 0:01:42.2]} 24. Nxc3 {[%clk 0:01:15.5]} 24... bxc3 {[%clk 0:01:44.1]}
25. Rc1 {[%clk 0:01:16.4]} 25... Nb7 {[%clk 0:01:21.7]} 26. Bxa6 {[%clk
0:01:06.6]} 26... Nxa5 {[%clk 0:01:21.1]} 27. Rxc3 {[%clk 0:01:07.2]} 27... Ra7
{[%clk 0:01:15.3]} 28. Bd3 {[%clk 0:00:39.1]} 28... Rb7 {[%clk 0:00:58.7]} 29.
b4 {[%clk 0:00:39.9]} 29... Rxb6 {[%clk 0:00:56.1]} 30. bxa5 {[%clk 0:00:40.9]}
1-0

[Event "*** Titled Tuesday Blitz"]
[Site "Chess.com"]
[Date "2019.12.03"]
[Round "10"]
[White "Sanan_Sjugirov"]
[Black "Parhamov"]
[Result "0-1"]
[WhiteElo "2914"]
[BlackElo "3096"]
[TimeControl "180+2"]
[EndTime "15:17:55 PST"]
[Termination "Parhamov won by resignation"]

1. d4 {[%clk 0:03:01.9]} 1... d5 {[%clk 0:02:57.1]} 2. c4 {[%clk 0:03:02.2]}
2... e6 {[%clk 0:02:58.2]} 3. Nf3 {[%clk 0:03:02.6]} 3... Nf6 {[%clk 0:02:55.7]}
4. Nc3 {[%clk 0:03:02.9]} 4... dxc4 {[%clk 0:02:56.7]} 5. e4 {[%clk 0:02:59.2]}
5... b5 {[%clk 0:02:57.3]} 6. e5 {[%clk 0:02:59.7]} 6... Nd5 {[%clk 0:02:58.6]}
7. Nxb5 {[%clk 0:03:00.8]} 7... Nb6 {[%clk 0:03:00.1]} 8. Be2 {[%clk 0:02:57.3]}
8... Nc6 {[%clk 0:03:01.4]} 9. O-O {[%clk 0:02:57.3]} 9... Be7 {[%clk
0:03:02.2]} 10. Nc3 {[%clk 0:02:51]} 10... O-O {[%clk 0:03:02.2]} 11. Be3 {[%clk
0:02:44.6]} 11... Bb7 {[%clk 0:02:45.5]} 12. Rc1 {[%clk 0:02:45]} 12... Nb4
{[%clk 0:02:40.6]} 13. a3 {[%clk 0:02:43.2]} 13... N4d5 {[%clk 0:02:41.8]} 14.
Na4 {[%clk 0:02:41.6]} 14... Nxe3 {[%clk 0:02:39]} 15. fxe3 {[%clk 0:02:43.5]}
15... Bg5 {[%clk 0:02:37.5]} 16. Kf2 {[%clk 0:01:41.1]} 16... Nd5 {[%clk
0:01:57.7]} 17. Nxg5 {[%clk 0:01:36.3]} 17... Qxg5 {[%clk 0:01:59.6]} 18. Qd2
{[%clk 0:01:37.9]} 18... Nb6 {[%clk 0:02:01.3]} 19. Nc5 {[%clk 0:01:18.1]} 19...
Qxg2+ {[%clk 0:01:56.1]} 20. Ke1 {[%clk 0:01:19.4]} 20... Bc6 {[%clk 0:01:52.4]}
21. Bh5 {[%clk 0:01:00]} 21... Qg5 {[%clk 0:01:48.7]} 22. Bf3 {[%clk 0:00:52.4]}
22... Bxf3 {[%clk 0:01:48.9]} 23. Rxf3 {[%clk 0:00:54.3]} 23... a5 {[%clk
0:01:42.7]} 24. Qf2 {[%clk 0:00:53.9]} 24... Qe7 {[%clk 0:01:42.8]} 25. Ke2
{[%clk 0:00:51.6]} 25... Rab8 {[%clk 0:01:41.7]} 26. Rg3 {[%clk 0:00:42.5]}
26... Nd7 {[%clk 0:01:40.6]} 27. Na4 {[%clk 0:00:38.7]} 27... f6 {[%clk
0:01:39.7]} 28. Rcg1 {[%clk 0:00:27.8]} 28... Rf7 {[%clk 0:01:22.8]} 29. exf6
{[%clk 0:00:21.1]} 29... Nxf6 {[%clk 0:01:23.9]} 30. Qg2 {[%clk 0:00:22]} 30...
Nd5 {[%clk 0:01:20.5]} 31. Qe4 {[%clk 0:00:18.4]} 31... Rxb2+ {[%clk 0:01:18.2]}
0-1

[Event "*** Titled Tuesday Blitz"]
[Site "Chess.com"]
[Date "2019.12.03"]
[Round "10"]
[White "GoldenShare"]
[Black "LonesomeGeorge1"]
[Result "1-0"]
[WhiteElo "2470"]
[BlackElo "2322"]
[TimeControl "180+2"]
[EndTime "15:18:00 PST"]
[Termination "GoldenShare won by resignation"]

1. e4 {[%clk 0:03:01.9]} 1... c5 {[%clk 0:02:59]} 2. Nc3 {[%clk 0:03:02.5]} 2...
Nc6 {[%clk 0:02:59.5]} 3. Bb5 {[%clk 0:03:03.4]} 3... Nd4 {[%clk 0:03:00.2]} 4.
Nf3 {[%clk 0:03:04.3]} 4... g6 {[%clk 0:03:00.6]} 5. O-O {[%clk 0:03:04.2]} 5...
Bg7 {[%clk 0:03:01.3]} 6. Nxd4 {[%clk 0:03:03]} 6... cxd4 {[%clk 0:03:01.2]} 7.
Ne2 {[%clk 0:03:04]} 7... Nf6 {[%clk 0:02:48]} 8. d3 {[%clk 0:03:02.4]} 8... Qb6
{[%clk 0:02:46.6]} 9. Ba4 {[%clk 0:03:01.8]} 9... O-O {[%clk 0:02:46.6]} 10. f4
{[%clk 0:02:58.3]} 10... d6 {[%clk 0:02:45.3]} 11. h3 {[%clk 0:02:53.3]} 11...
Nd7 {[%clk 0:02:29.2]} 12. Qe1 {[%clk 0:02:48.4]} 12... Nc5 {[%clk 0:02:24.5]}
13. Bb3 {[%clk 0:02:49.7]} 13... a5 {[%clk 0:02:25.3]} 14. Qh4 {[%clk
0:02:45.7]} 14... Qd8 {[%clk 0:02:10.5]} 15. f5 {[%clk 0:02:44]} 15... b5 {[%clk
0:02:08.3]} 16. Bh6 {[%clk 0:02:34]} 16... Ra6 {[%clk 0:02:02.6]} 17. Nf4 {[%clk
0:02:33.3]} 17... a4 {[%clk 0:01:57.6]} 18. fxg6 {[%clk 0:02:31.8]} 18... hxg6
{[%clk 0:01:40.6]} 19. Nxg6 {[%clk 0:02:31.7]} 19... axb3 {[%clk 0:01:38.8]} 20.
Bxg7 {[%clk 0:01:41.8]} 20... Kxg7 {[%clk 0:01:38.4]} 21. Nxf8 {[%clk
0:01:43.1]} 21... Qxf8 {[%clk 0:01:18.8]} 22. Qg5+ {[%clk 0:01:41.5]} 22... Kh7
{[%clk 0:01:20.2]} 23. Rf4 {[%clk 0:01:25.5]} 23... d5 {[%clk 0:01:21]} 24. Raf1
{[%clk 0:01:07.6]} 24... f5 {[%clk 0:01:00.1]} 25. Rh4+ {[%clk 0:01:00.6]} 25...
Rh6 {[%clk 0:01:00.2]} 26. Rxh6+ {[%clk 0:01:01.5]} 26... Qxh6 {[%clk
0:01:01.2]} 27. Qxe7+ {[%clk 0:01:03.1]} 27... Kh8 {[%clk 0:00:51.5]} 28. Qxc5
{[%clk 0:01:00]} 28... Be6 {[%clk 0:00:50]} 29. Qxd4+ {[%clk 0:01:00.7]} 29...
Kh7 {[%clk 0:00:48.3]} 30. exd5 {[%clk 0:00:57.8]} 30... bxc2 {[%clk 0:00:48.7]}
31. dxe6 {[%clk 0:00:47.2]} 31... c1=Q {[%clk 0:00:49.7]} 32. Rxc1 {[%clk
0:00:44.6]} 32... Qxc1+ {[%clk 0:00:51.6]} 33. Kh2 {[%clk 0:00:45.4]} 33... Qc7+
{[%clk 0:00:53.2]} 34. Kg1 {[%clk 0:00:45.6]} 34... Qc1+ {[%clk 0:00:54.1]} 35.
Kf2 {[%clk 0:00:46.9]} 35... Qd2+ {[%clk 0:00:53.4]} 36. Kf3 {[%clk 0:00:47]}
36... Qd1+ {[%clk 0:00:52.6]} 37. Kf4 {[%clk 0:00:47.9]} 37... Qf1+ {[%clk
0:00:50.9]} 38. Ke5 {[%clk 0:00:49]} 38... Qe2+ {[%clk 0:00:51.9]} 39. Kf6
{[%clk 0:00:48.2]} 39... Qh5 {[%clk 0:00:50.9]} 40. Qd7+ {[%clk 0:00:48.4]} 1-0

[Event "*** Titled Tuesday Blitz"]
[Site "Chess.com"]
[Date "2019.12.03"]
[Round "10"]
[White "SirMittensofMittensville"]
[Black "ShahMatKanal"]
[Result "1-0"]
[WhiteElo "2639"]
[BlackElo "2496"]
[TimeControl "180+2"]
[EndTime "15:18:01 PST"]
[Termination "SirMittensofMittensville won by resignation"]

1. e4 {[%clk 0:03:01.9]} 1... c6 {[%clk 0:02:59.4]} 2. d3 {[%clk 0:02:59.3]}
2... g6 {[%clk 0:02:58.6]} 3. Nf3 {[%clk 0:02:59.7]} 3... d5 {[%clk 0:02:58.2]}
4. Qe2 {[%clk 0:03:00.3]} 4... Bg4 {[%clk 0:02:49.6]} 5. Nbd2 {[%clk 0:03:00.2]}
5... Bg7 {[%clk 0:02:48.6]} 6. g3 {[%clk 0:02:59.2]} 6... e6 {[%clk 0:02:45.1]}
7. Bg2 {[%clk 0:02:59.6]} 7... Ne7 {[%clk 0:02:45.7]} 8. O-O {[%clk 0:02:58.3]}
8... O-O {[%clk 0:02:43.6]} 9. h3 {[%clk 0:02:58.2]} 9... Bxf3 {[%clk
0:02:44.4]} 10. Nxf3 {[%clk 0:03:00.1]} 10... a5 {[%clk 0:02:41]} 11. c3 {[%clk
0:02:58.2]} 11... a4 {[%clk 0:02:40.3]} 12. a3 {[%clk 0:02:58.8]} 12... dxe4
{[%clk 0:02:30.2]} 13. dxe4 {[%clk 0:02:59.3]} 13... Qb6 {[%clk 0:02:28.8]} 14.
Be3 {[%clk 0:02:58.6]} 14... Qa6 {[%clk 0:02:23.3]} 15. Qc2 {[%clk 0:02:54.7]}
15... Nd7 {[%clk 0:02:21]} 16. Rad1 {[%clk 0:02:53.3]} 16... Rfd8 {[%clk
0:02:19.2]} 17. Bg5 {[%clk 0:02:47.4]} 17... f6 {[%clk 0:02:13.5]} 18. Be3
{[%clk 0:02:46.1]} 18... Nf8 {[%clk 0:02:00.1]} 19. h4 {[%clk 0:02:37.3]} 19...
b6 {[%clk 0:01:47.7]} 20. Bh3 {[%clk 0:02:35.2]} 20... c5 {[%clk 0:01:45.9]} 21.
Rxd8 {[%clk 0:02:31.2]} 21... Rxd8 {[%clk 0:01:46.5]} 22. Rd1 {[%clk 0:02:32.7]}
22... Rxd1+ {[%clk 0:01:30.8]} 23. Qxd1 {[%clk 0:02:32.9]} 23... Qa8 {[%clk
0:01:30.3]} 24. Qd6 {[%clk 0:02:00.1]} 24... Qxe4 {[%clk 0:01:14]} 25. Qxe7
{[%clk 0:02:00.2]} 25... Qxf3 {[%clk 0:01:13.7]} 26. Bxe6+ {[%clk 0:02:00.8]}
26... Nxe6 {[%clk 0:00:45.1]} 27. Qxe6+ {[%clk 0:02:01.7]} 27... Kf8 {[%clk
0:00:46.8]} 28. Qxb6 {[%clk 0:01:53.2]} 28... g5 {[%clk 0:00:24.7]} 29. hxg5
{[%clk 0:01:45.8]} 29... fxg5 {[%clk 0:00:25.8]} 30. Qxc5+ {[%clk 0:01:46.6]}
30... Kf7 {[%clk 0:00:25.2]} 31. Qxg5 {[%clk 0:01:47.1]} 31... Qd1+ {[%clk
0:00:23.9]} 32. Kh2 {[%clk 0:01:47.6]} 32... Qb3 {[%clk 0:00:25.8]} 33. Qf5+
{[%clk 0:01:44.5]} 33... Kg8 {[%clk 0:00:25]} 34. Qc8+ {[%clk 0:01:39.6]} 34...
Kf7 {[%clk 0:00:25]} 35. Qc7+ {[%clk 0:01:36.8]} 35... Kg8 {[%clk 0:00:21.5]}
36. Qb6 {[%clk 0:01:34]} 36... Qc4 {[%clk 0:00:17.6]} 37. Bd4 {[%clk 0:01:28.1]}
37... Bf8 {[%clk 0:00:11.2]} 38. Qf6 {[%clk 0:01:25]} 38... h6 {[%clk
0:00:09.2]} 39. Qg6+ {[%clk 0:01:22.3]} 1-0